Cogmind - Beta 16.1 @@@ ROGUE MODE // 2026.04.03 @ 22:36:23 Player: Ammie Result: Destroyed by P-70 Sage with High-powered Shock Rifle Performance ------------- Evolutions (5) 2500 Regions Visited (5) 1000 Robots Destroyed (6) 30 Value Destroyed (326) 326 Prototype IDs (0) 0 Alien Tech Used (0) 0 Bonus (991) 991 TOTAL SCORE: 4847 Bonus ------- Pacifist 491 Entered DSFs 500 Cogmind --------- Core Integrity 0/1000 Matter 300/300 Energy 100/100 System Corruption 1% Temperature Cool (0) Movement Core (50) Location -5/DSF Parts ------- > --- POWER (3) -------- (None) > --- PROPULSION (5) --- (None) > --- UTILITY (5) ------ Weapon Cycler > --- WEAPON (4) ------- (None) > --- INVENTORY (5) ---- Carbon-fiber Leg Carbon-fiber Leg System Restoration Module Peak State ------------ > --- POWER ------------ Ion Engine Nuclear Core > --- PROPULSION ------- Aluminum Leg Improved Titanium Leg > --- UTILITY ---------- Advanced Heat Sink Compact Matter Pod Improved Targeting Computer Weapon Cycler Recalibrator > --- WEAPON ----------- Enhanced Gauss Cannon Enhanced Gauss Cannon Enhanced Gauss Cannon Enhanced Gauss Cannon > --- INVENTORY -------- System Restoration Module Gauss Cannon Slug Cannon Enhanced Gauss Cannon Enhanced Gauss Cannon [Rating: 53] Favorites ----------- Power Nuclear Core Engine Ion Engine Power Core Nuclear Core Propulsion Aluminum Leg Leg Aluminum Leg Utility Weapon Cycler Device Weapon Cycler Storage Compact Matter Pod Processor Improved Targeting Computer Weapon Slug Cannon Energy Gun EM Pulse Gun Ballistic Gun Light Assault Rifle Ballistic Cannon Slug Cannon Build | -11 -10 -10 -7 -5 -5 ------- Run | Yrd Mat Sub Scr Fac DSF Slots Evolved 10 | . . . . 10 . Power 2 | . . . . 2 . Propulsion 3 | . . . . 3 . Utility 3 | . . . . 3 . Weapon 2 | . . . . 2 . Parts Attached 24 | 6 . . 7 3 8 Power 4 | 2 . . 1 . 1 Engine 2 | 2 . . . . . Core 2 | . . . 1 . 1 Reactor . | . . . . . . Propulsion 3 | 2 . . 1 . . Treads . | . . . . . . Leg 3 | 2 . . 1 . . Wheel . | . . . . . . Hover . | . . . . . . Flight . | . . . . . . Utility 6 | . . . 3 3 . Device 4 | . . . 2 2 . Storage 1 | . . . . 1 . Processor 1 | . . . 1 . . Hackware . | . . . . . . Protection . | . . . . . . Artifact . | . . . . . . Weapon 11 | 2 . . 2 . 7 Energy Gun 1 | 1 . . . . . Energy Cannon . | . . . . . . Ballistic Gun 2 | 1 . . . . 1 Ballistic Cannon 8 | . . . 2 . 6 Launcher . | . . . . . . Special Weapon . | . . . . . . Impact Weapon . | . . . . . . Slashing Weapon . | . . . . . . Piercing Weapon . | . . . . . . Special Melee Weapon . | . . . . . . Unidentified Prototypes . | . . . . . . Parts Lost 18 | . . . . . 18 Power 3 | . . . . . 3 Propulsion 2 | . . . . . 2 Utility 4 | . . . . . 4 Weapon 9 | . . . . . 9 Highest Loss Streak 17 | . . . . . 17 To Critical Strikes . | . . . . . . Average Backups 3 | 1 2 2 4 1 3 Power . | . 1 1 1 . . Propulsion . | . . . . . . Utility 1 | . . . 2 1 1 Weapon 1 | . 1 1 1 . 2 Tool/Special . | . . . . . . Unused Backups 3 | . . . 2 . 1 Power . | . . . . . . Propulsion . | . . . . . . Utility 1 | . . . . . 1 Weapon 2 | . . . 2 . . Tool/Special . | . . . . . . Average Slot Usage (%) 85 | . 71 71 98 60 61 Engine 4 | . 14 14 1 4 3 Core 8 | . . . 13 5 3 Leg 24 | . 28 28 28 11 9 Device 11 | . . . 14 15 15 Processor 7 | . . . 11 5 4 Energy Gun 4 | . 14 14 2 . . Ballistic Gun 3 | . 14 14 . . . Ballistic Cannon 17 | . . . 24 11 18 Peak Build Rating 53 | 5 5 5 23 35 53 Average Rating 20 | 3 5 5 21 34 42 On Entrance 12 | . 5 5 5 23 35 Avg Prop Armor Cover (%) . | . . . . . . Naked Turns . | . . . . . . Heaviest Build 52 | 8 8 8 30 30 52 Greatest Support 30 | 20 20 20 30 30 30 Greatest Overweight (x) 1 | . . . . . 1 Average Overweight (x) . | . . . . . . Largest Inventory Capacity 5 | 5 5 5 5 5 5 Average Capacity 5 | 5 5 5 5 5 5 Most Carried 5 | 2 2 3 5 4 5 Average Carried 4 | 1 2 2 4 1 3 Final Capacity 5 | 5 5 5 5 5 5 Final Carried 5 | 2 2 3 5 1 3 Class Distribution -------------------- 58% | Derelict-Mutant 29% | Mutant 11% | Derelict-Gunner Dominant Class ---------------- Mutant | -10/Materials Mutant | -10/Subcaves Derelict-Mutant | -7/Scraptown Derelict-Mutant | -5/Factory Derelict-Gunner | -5/DSF Resources | -11 -10 -10 -7 -5 -5 ----------- Run | Yrd Mat Sub Scr Fac DSF Matter Collected 798 | 137 20 79 137 . 425 Remotely . | . . . . . . Salvage Created 310 | . . . . . 310 Parts 7 | . . . . . 7 Haulers Intercepted . | . . . . . . Recyclers Shooed . | . . . . . . Parts Field Recycled . | . . . . . . Retrieved Matter . | . . . . . . Parts Self-Destructed 5 | . . 5 . . . Prevented . | . . . . . . Parts Restored . | . . . . . . Kills | -11 -10 -10 -7 -5 -5 ------- Run | Yrd Mat Sub Scr Fac DSF Combat Hostiles Destroyed 6 | . . . . . 6 Cannons 6 | . . . . . 6 Classes Destroyed 3 | . . . . . 3 Swarmer 1 | . . . . . 1 Grunt 4 | . . . . . 4 Specialist 1 | . . . . . 1 Best Kill Streak 2 | . . . . . 2 Combat Bots Only 2 | . . . . . 2 Max Kills in Single Turn 1 | . . . . . 1 Gunslinging . | . . . . . . Exploded . | . . . . . . Melee . | . . . . . . Uniques/NPCs Destroyed . | . . . . . . Combat | -11 -10 -10 -7 -5 -5 -------- Run | Yrd Mat Sub Scr Fac DSF Hostile Shots Fired 290 | . . . . . 290 Missed 91 | . . . . . 91 Hits 199 | . . . . . 199 Projectile 199 | . . . . . 199 Critical Strikes 2 | . . . . . 2 Part Disruptions 2 | . . . . . 2 Damage Taken 3305 | . . . . . 3305 Core 1016 | . . . . . 1016 Absorbed by Shields . | . . . . . . Regen/Repaired (Parts) 111 | . . . 111 . . Core Remaining (%) 100 | 100 . . 100 . . Volleys Fired 23 | . 5 . . . 18 Largest 4 | . 2 . . . 4 Hottest 188 | . 60 . . . 188 Shots Fired 69 | . 10 . . . 59 Gun 11 | . 10 . . . 1 Cannon 58 | . . . . . 58 Launcher . | . . . . . . Special . | . . . . . . Kinetic 64 | . 5 . . . 59 Thermal . | . . . . . . Explosive . | . . . . . . Electromagnetic 5 | . 5 . . . . Robot Hit Streak 5 | . 5 . . . 5 Robot Miss Streak 6 | . 2 . . . 6 Penetration Max 1 | . . . . . 1 Secondary Targets . | . . . . . . Shots Hit Robots 28 | . 6 . . . 22 Core Hits 10 | . 1 . . . 9 Critical Kills . | . . . . . . Critical Parts Destroyed 2 | . . . . . 2 Critical Strikes 4 | . . . . . 4 Destroy 2 | . . . . . 2 Blast 2 | . . . . . 2 Melee Attacks . | . . . . . . Impact . | . . . . . . Slashing . | . . . . . . Piercing . | . . . . . . Sneak Attacks . | . . . . . . Combat Hostiles . | . . . . . . Follow-up Attacks . | . . . . . . Damage Inflicted 814 | . 80 . . . 734 Guns 121 | . 76 . . . 45 Cannons 687 | . . . . . 687 Explosions . | . . . . . . Melee . | . . . . . . Ramming 6 | . 4 . . . 2 Kinetic 756 | . 24 . . . 732 Thermal . | . . . . . . Explosive . | . . . . . . Electromagnetic 52 | . 52 . . . . Impact . | . . . . . . Slashing . | . . . . . . Piercing . | . . . . . . Highest Corruption 1 | . . . . . 1 Average Corruption 1 | . . . . . 1 Corruption Purged . | . . . . . . Corruption Blocked . | . . . . . . Effects 3 | . . . . . 3 Message Errors 1 | . . . . . 1 Data Loss (major) 1 | . . . . . 1 Weapon Failures 1 | . . . . . 1 Overload Shots . | . . . . . . Overflow Damage 4 | . . . . . 4 Projectiles 4 | . . . . . 4 Explosions . | . . . . . . Melee . | . . . . . . Knockbacks 7 | . . . . . 7 Impact . | . . . . . . Kinetic 7 | . . . . . 7 Secondary . | . . . . . . Self-Inflicted Damage . | . . . . . . Shots . | . . . . . . Rammed 1 | . . . . . 1 Targets Rammed 4 | . 2 . . . 2 Kicked 3 | . 2 . . . 1 Crushed . | . . . . . . Highest Temperature 96 | . 40 . . . 96 Average Temperature 30 | . 15 . . . 37 Received Heat Transfer 1149 | . . . . . 1149 Siege Activations . | . . . . . . Martial Activations . | . . . . . . Shielding Activations . | . . . . . . Robots Disrupted . | . . . . . . Combat Hostiles . | . . . . . . Robots Corrupted . | . . . . . . Combat Hostiles . | . . . . . . Parts Fried . | . . . . . . Impact Corruptions . | . . . . . . Robots Melted . | . . . . . . Combat Hostiles . | . . . . . . Parts Melted . | . . . . . . Heat Transferred . | . . . . . . Parts Sabotaged . | . . . . . . Parts Stolen . | . . . . . . Parts Stripped . | . . . . . . Power Chain Reactions . | . . . . . . Alert | -11 -10 -10 -7 -5 -5 ------- Run | Yrd Mat Sub Scr Fac DSF Maximum Alert Level . | . . . . . . Low Security (%) 100 | 100 100 . . 100 100 Level 1 . | . . . . . . Level 2 . | . . . . . . Level 3 . | . . . . . . Level 4 . | . . . . . . Level 5 . | . . . . . . High Security . | . . . . . . Max Security . | . . . . . . Peak Influence 144 | . . . . . 144 Initial . | . . . . . . Average 37 | . . . . . 67 Influence Increases 211 | . . . . . 211 Destroy 0b10 Robot/C 120 | . . . . . 120 Destroy Leader 10 | . . . . . 10 Disable Machine 15 | . . . . . 15 Destroy Structure 36 | . . . . . 36 Lose Combat Pursuer 30 | . . . . . 30 Influence Decreases 180 | . . . . . 180 Lost Part 180 | . . . . . 180 Squads Dispatched 3 | . 1 . . 1 1 Investigation 1 | . . . . 1 . Extermination . | . . . . . . Reinforcement 2 | . 1 . . . 1 Assault . | . . . . . . Garrison . | . . . . . . Intercept . | . . . . . . Searches Triggered . | . . . . . . Construction Impeded . | . . . . . . Haulers Reinforced . | . . . . . . Active Scanning Responses . | . . . . . . Cargo Convoy Interrupts . | . . . . . . Stealth | -11 -10 -10 -7 -5 -5 --------- Run | Yrd Mat Sub Scr Fac DSF Distress Signals 1 | . 1 . . . . Communications Jammed . | . . . . . . Distress Signals . | . . . . . . Times Spotted 22 | . 7 . . . 15 Peak Tracking Total 7 | . 4 . . . 7 Tactical Retreats 2 | . . . . . 2 Traps | -11 -10 -10 -7 -5 -5 ------- Run | Yrd Mat Sub Scr Fac DSF Traps Triggered 1 | . . . . . 1 Indirectly . | . . . . . . Trap Hack Attempts . | . . . . . . Triggered . | . . . . . . Disarmed . | . . . . . . Reprogrammed . | . . . . . . Reused . | . . . . . . Traps Extracted . | . . . . . . Installed . | . . . . . . Triggered . | . . . . . . Machines | -11 -10 -10 -7 -5 -5 ---------- Run | Yrd Mat Sub Scr Fac DSF Machines Disabled 1 | . . . . . 1 Max in Single Turn 1 | . . . . . 1 Machines Repaired . | . . . . . . Machines Dismantled . | . . . . . . Machines Sabotaged . | . . . . . . Overloaded Fab Kills . | . . . . . . Hacking | -11 -10 -10 -7 -5 -5 --------- Run | Yrd Mat Sub Scr Fac DSF Machines Accessed 5 | . . . 3 2 . Terminals 1 | . . . . 1 . Fabricators 1 | . . . . 1 . Repair Stations . | . . . . . . Recycling Units . | . . . . . . Scanalyzers . | . . . . . . Garrison Access . | . . . . . . Total Hacks 29 | . . . 23 6 . Successful 24 | . . . 23 1 . Failed 5 | . . . . 5 . Catastrophic . | . . . . . . Database Lockouts . | . . . . . . Manual . | . . . . . . Terminals 3 | . . . . 3 . Fabricators 3 | . . . . 3 . Repair Stations . | . . . . . . Recycling Units . | . . . . . . Scanalyzers . | . . . . . . Garrison Access . | . . . . . . Terminal Hacks 24 | . . . 23 1 . Record 23 | . . . 23 . . Open DSF 1 | . . . . 1 . Fabricator Hacks . | . . . . . . Repair Station Hacks . | . . . . . . Recycling Unit Hacks . | . . . . . . Scanalyzer . | . . . . . . Garrison Access Hacks . | . . . . . . Unauthorized Hacks . | . . . . . . Terminals . | . . . . . . Fabricators . | . . . . . . Repair Stations . | . . . . . . Recycling Units . | . . . . . . Scanalyzers . | . . . . . . Garrison Access . | . . . . . . Data Cores Recovered . | . . . . . . Used . | . . . . . . Hacking Detections 2 | . . . . 2 . Full Trace Events 1 | . . . . 1 . Feedback Events . | . . . . . . Feedback Blocked . | . . . . . . Robot Schematics Acquired . | . . . . . . Robots Built . | . . . . . . Authchips . | . . . . . . Time . | . . . . . . Total Robot Build Rating . | . . . . . . Part Schematics Acquired . | . . . . . . Parts Built . | . . . . . . Authchips . | . . . . . . Time . | . . . . . . Total Part Build Rating . | . . . . . . Part Studies Acquired . | . . . . . . Parts Repaired . | . . . . . . Time . | . . . . . . Parts Recycled . | . . . . . . Recycled Matter . | . . . . . . Retrieved Matter . | . . . . . . Retrieved Components . | . . . . . . Parts Scanalyzed . | . . . . . . Part Schematics Acquired . | . . . . . . Parts Damaged . | . . . . . . Bothacking | -11 -10 -10 -7 -5 -5 ------------ Run | Yrd Mat Sub Scr Fac DSF Used RIF Installer . | . . . . . . Robots Hacked . | . . . . . . Non-combat . | . . . . . . Combat . | . . . . . . Robot Hacks Applied . | . . . . . . Relay Couplers Released . | . . . . . . Fabnet Peak Effective % . | . . . . . . Robots Rewired . | . . . . . . Allies Hacked . | . . . . . . Hacks Repelled . | . . . . . . Allies | -11 -10 -10 -7 -5 -5 -------- Run | Yrd Mat Sub Scr Fac DSF Total Allies . | . . . . . . Largest Group . | . . . . . . Highest-Rated Group . | . . . . . . Highest-Rated Ally . | . . . . . . Total Orders . | . . . . . . Ally Attacks . | . . . . . . Total Damage . | . . . . . . Kills . | . . . . . . Allies Corrupted . | . . . . . . Allies Melted . | . . . . . . Intel | -11 -10 -10 -7 -5 -5 ------- Run | Yrd Mat Sub Scr Fac DSF Active Infowar (turns) 2 | . . . 2 . . ECM 2 | . . . 2 . . Robot Analysis Total . | . . . . . . Derelict Logs Recovered 2 | . . 1 1 . . Drone Launches . | . . . . . . Drone Recoveries . | . . . . . . Exploration | -11 -10 -10 -7 -5 -5 ------------- Run | Yrd Mat Sub Scr Fac DSF Turns Passed 2125 | 46 173 297 1249 42 318 Spaces Moved 1547 | 34 123 215 966 31 178 Core 76 | 8 . . . . 68 Treads . | . . . . . . Legs 1471 | 26 123 215 966 31 110 Wheels . | . . . . . . Hover . | . . . . . . Flight . | . . . . . . Fastest Speed 50 | 50 120 120 120 125 50 Average Speed 124 | 103 120 120 124 125 133 Slowest Speed 195 | 120 120 120 125 125 195 Overloaded Moves . | . . . . . . Propulsion Burnouts . | . . . . . . Robots Hopped . | . . . . . . Potential Cave-ins . | . . . . . . Cave-ins Triggered . | . . . . . . Exploration Rate (%) 29 | 3 38 19 59 1 57 Regions Visited 5 Branch Regions 2 Pre-discovered Areas . | . . . . . . Known Exits Taken 1 | . . . . 1 . Unknown Exits Taken 4 | 1 1 1 1 . . Scrap Searched 6 | . . 1 5 . . Spaces Dug 5 | . . . . . 5 Terrain Destroyed 22 | . . . . . 22 Melee . | . . . . . . Projectile 22 | . . . . . 22 AOE . | . . . . . . Terrain Rammed . | . . . . . . Walls Destroyed . | . . . . . . Machines Disabled . | . . . . . . Actions | -11 -10 -10 -7 -5 -5 --------- Run | Yrd Mat Sub Scr Fac DSF Total 1689 | 41 139 254 1009 34 212 Wait 75 | . 10 39 26 . . Move 1543 | 34 122 214 965 30 178 Hop . | . . . . . . Pick Up 9 | 1 . 1 5 . 2 Fast Attach 11 | 5 . . 2 . 4 Attach 8 | . . . . 4 4 Detach . | . . . . . . Swap 11 | 1 . . 6 . 4 Drop 5 | . . . 5 . . Fire 23 | . 5 . . . 18 Melee . | . . . . . . Ram 1 | . . . . . 1 Kick 3 | . 2 . . . 1 Crush . | . . . . . . Escape Stasis . | . . . . . . Rewire . | . . . . . . Trap . | . . . . . . Miscellaneous . | . . . . . . Route ------- -11/Scrapyard -10/Materials (discovered 3 exits: [*Mat] / [*Min] / [*Sub]) -10/Subcaves (discovered 2 exits: Mat / *Scr) -7/Scraptown -5/Factory -5/DSF History --------- Turn | Location | Event 27 | -11/Scrapyard | Discovered new exit (range 15) 47 | -11/Scrapyard | Entered Materials 48 | -10/Materials | Met a group of wandering Federalists 105 | -10/Materials | Discovered new exit (range 16) 209 | -10/Materials | Discovered new exit (range 15) 215 | -10/Materials | Discovered new exit (range 5) 220 | -10/Materials | Entered Subcaves 220 | -10/Subcaves | Accompanied by 2 allies 221 | -10/Subcaves | Continued accompanying wandering Federalists (5) 229 | -10/Subcaves | Identified exit to Materials 318 | -10/Subcaves | Build established: Mutant 472 | -10/Subcaves | Wandering Federalist uncovered a shortcut to Scraptown 517 | -10/Subcaves | Entered Scraptown 883 | -7/Scraptown | Build established: Derelict-Mutant 956 | -7/Scraptown | Visited UFD Registry 977 | -7/Scraptown | Visited TADAMA 1008 | -7/Scraptown | Visited Awakened 1253 | -7/Scraptown | Visited CR-KLE's Repair Center 1262 | -7/Scraptown | CR-KLE repaired 5 parts 1313 | -7/Scraptown | Visited Symbiants 1391 | -7/Scraptown | Visited Spacefarers 1449 | -7/Scraptown | Visited SPCMW 1476 | -7/Scraptown | Visited Cyclists 1549 | -7/Scraptown | Scanned Subdweller tech in exchange for log data 1567 | -7/Scraptown | Discovered new exit (range 13) 1766 | -7/Scraptown | Entered Factory 1766 | -5/Factory | Evolved 10 slots: Power x2, Propulsion x3, Utility x3, Weapon x2 1773 | -5/Factory | Identified exit to DSF 1808 | -5/Factory | Entered DSF 1835 | -5/DSF | Additional patrols routed to DSF 2095 | -5/DSF | Core integrity fell below 50% 2102 | -5/DSF | Core integrity fell below 20% 2126 | -5/DSF | Destroyed by P-70 Sage with High-powered Shock Rifle Last Messages --------------- 02091_ S-27 Virus destroyed. 02094_ Recalibrator destroyed. 02094_ Enh. Gauss Cannon destroyed. 02094_ Gauss Cannon destroyed. 02094_ Acquired Lgt. Nuclear Core. 02095_ Lgt. Nuclear Core destroyed. 02095_ Knocked back. 02096_ Acquired 61 matter. 02096_ Acquired 18 matter. 02097_ Imp. Targeting Computer destroyed. 02099_ Knocked back. 02100_ Acquired 1 matter. 02110_ Acquired 3 matter. 02111_ Acquired 46 matter. 02112_ Acquired 85 matter. 02112_ Acquired 37 matter. 02116_ Acquired Carbon-fiber Leg. 02122_ Knocked back. 02126_ C-30 ARC bursts open, deploying its payload. 02126_ P-70 Sage unfolds itself. Map ----- +----------------------------------------------------+ | ??????????????????????????????????????????????? | | ??????????????????????????????????????????????? | | ??????????????????????????????????????????????? | | ???????????????????????????????????##?????????? | | ??????????????????????##??????????#""?????????? | | ??????????????????????# ##?##?????#"#?????????? | | ?????????????????#######"### ##?###"####??????? | | ?????????????????#!!!!!!!%"##"##"#%"%""#??????? | | ?????????????????#!!!!!!!"]]]#]]## "%""#??????? | | ?????????????????# % [[%% %%""##"#???? | | ?????????????????# """""#???? | | ?????????????????### "##]]]"[ #" ""###????? | | ?????????????????### ""#]]]#[[##" ###??????? | | ?????????????????# ########"" ##???????? | | ?????????????????# #??????#[ #???????? | | ?????????????????# %= #??????# #???????? | | ?????????????????### ="##??????### ##???????? | | ?????????????????#!! !!#??????#]] ]#???????? | | ?????????????????#!! = !!#??????#]] ]###?????? | | ?????????????????#!! %!!#??????#]] ]# #?????? | | ?????????????????### *"########### ""##?????? | | ?????????????#????##A A;##!!!#%%%## !!;#?????? | | ???????????!!#!!!## ##!!!#%% #xx !!# #????? | | ?????????? !!###????? | | ?????????? H %! !!#??????? | | ?????????? @ % !!#??????? | | ?????????????#!!!##A p%##!!!# #" #??????? | | ?????????????#!!!?## ###!!!; ## #??????? | | ?????????????###???#%" ??###;###########??????? | | ???????????????????!" ???# ##????????????????? | | ???????????????????!^ ???##??????????????????? | | ??????????????????!! ???????????????????????? | | ??????????????????## ???????????????????????? | | ???????????????????/ ???????????????????????? | | ????????????????????? ???????????????????????? | | ??????????????????????????????????????????????? | | ??????????????????????????????????????????????? | | ??????????????????????????????????????????????? | | ??????????????????????????????????????????????? | | ??????????????????????????????????????????????? | | ??????????????????????????????????????????????? | | ??????????????????????????????????????????????? | | ??????????????????????????????????????????????? | | ??????????????????????????????????????????????? | | ??????????????????????????????????????????????? | | ??????????????????????????????????????????????? | | ??????????????????????????????????????????????? | | ??????????????????????????????????????????????? | | ??????????????????????????????????????????????? | | ??????????????????????????????????????????????? | +----------------------------------------------------+ Best States ------------- Heat Dissipation 59 Energy Generation 19 Energy Capacity 390 Matter Stores 300 Matter Capacity 450 Sight Range 16 Terrain Scan Density 10 Weapon Cycling 15 Evasion (%) 55 Targeting Accuracy 6 Item Schematics ----------------- None Robot Schematics ------------------ None Fabricated ------------ Nothing Repaired ---------- Nothing Studied --------- None Alien Tech Used ----------------- None Achievements -------------- Civilization 2243 Challenges ------------ None Game ------ Seed EnergyCommDevice Manual? 0 Play Time 00:29:13 Cumulative 34.6 hours Start 2026.04.03 @ 22:06:45 End 2026.04.03 @ 22:36:23 Sessions 1 Manual Loads 0 Difficulty Rogue Special Mode None Game No. 64 Rogue 64 Adventurer 0 Explorer 0 Win Type - Total 0 Types 0/0/0/0/0/0/0/0/0/0 Lore% 13 Gallery% 22 Achievement% 19 Wizard Run 0 Options --------- Layout 0 ASCII 0 Keyboard 0 Movement Mouse Keybinds 0 Fullscreen 1 Font 24/Smallcaps Map View 38x25 Zoom Use 98% Tactical HUD 1 Map Filters NONE Filters NONE Steam 1 RUN: 05a01e17-2bc8-49a9-ae32-0bd7df53c771